[Event "Titled Tuesday Blitz March 22 Late 2022"]
[White "Matlakov, Maxim"]
[Black "Beerdsen, Thomas"]
[WhiteFideId "4168003"]
[BlackFideId "1030108"]
[WhiteElo "2669"]
[BlackElo "2585"]
[Result "1-0"]
[Round "04"]
[TimeControl "180+1"]
[Date "2022.03.22"]
[WhiteClock "0:00:36"]
[BlackClock "0:00:12"]

1. e4 {[%clk 0:03:00]}  e5 {[%clk 0:02:59]} 2. Nf3 {[%clk 0:03:00]}  Nc6 {[%clk 0:02:59]} 3. Bc4 {[%clk 0:03:00]}  Nf6 {[%clk 0:02:58]} 4. d4 {[%clk 0:03:00]}  exd4 {[%clk 0:02:58]} 5. e5 {[%clk 0:02:59]}  d5 {[%clk 0:02:57]} 6. Bb5 {[%clk 0:02:59]}  Nd7 {[%clk 0:02:58]} 7. O-O {[%clk 0:02:53]}  Be7 {[%clk 0:02:57]} 8. c3 {[%clk 0:02:38]}  dxc3 {[%clk 0:02:44]} 9. Nxc3 {[%clk 0:02:38]}  O-O {[%clk 0:02:44]} 10. Qxd5 {[%clk 0:02:12]}  Nb4 {[%clk 0:02:30]} 11. Qe4 {[%clk 0:02:06]}  c6 {[%clk 0:02:05]} 12. Be2 {[%clk 0:02:02]}  Qa5 {[%clk 0:02:01]} 13. a3 {[%clk 0:01:51]}  Nd5 {[%clk 0:02:01]} 14. Bd2 {[%clk 0:01:26]}  Nxc3 {[%clk 0:01:24]} 15. Bxc3 {[%clk 0:01:26]}  Qd5 {[%clk 0:01:24]} 16. Qc2 {[%clk 0:01:24]}  Nc5 {[%clk 0:01:20]} 17. Bb4 {[%clk 0:01:11]}  Re8 {[%clk 0:00:58]} 18. Rad1 {[%clk 0:01:04]}  Qe6 {[%clk 0:00:15]} 19. Bxc5 {[%clk 0:01:03]}  Bd8 {[%clk 0:00:14]} 20. Rd6 {[%clk 0:00:57]}  Qg4 {[%clk 0:00:12]} 21. h3 {[%clk 0:00:53]}  Qh5 {[%clk 0:00:13]} 22. Rfd1 {[%clk 0:00:41]}  Be7 {[%clk 0:00:13]} 23. R6d4 {[%clk 0:00:39]}  Bf5 {[%clk 0:00:13]} 24. Bd3 {[%clk 0:00:38]}  Bxh3 {[%clk 0:00:13]} 25. Bxe7 {[%clk 0:00:36]}  Rxe7 {[%clk 0:00:12]} 26. Rh4 {[%clk 0:00:36]} 1-0


[Site "https://www.chess.com"]

[Event "Titled Tuesday Blitz March 22 Late 2022"]
[White "Mekhitarian, Krikor Sevag"]
[Black "Weber, Samuel"]
[WhiteFideId "2107660"]
[BlackFideId "12924008"]
[WhiteElo "2598"]
[BlackElo "2215"]
[Result "0-1"]
[Round "04"]
[TimeControl "180+1"]
[Date "2022.03.22"]
[WhiteClock "0:00:05"]
[BlackClock "0:00:10"]

1. e4 {[%clk 0:03:00]}  e5 {[%clk 0:02:58]} 2. Nf3 {[%clk 0:03:00]}  Nc6 {[%clk 0:02:58]} 3. Bc4 {[%clk 0:02:56]}  Bc5 {[%clk 0:02:57]} 4. c3 {[%clk 0:02:57]}  Nf6 {[%clk 0:02:57]} 5. d4 {[%clk 0:02:57]}  exd4 {[%clk 0:02:56]} 6. cxd4 {[%clk 0:02:58]}  Bb4+ {[%clk 0:02:52]} 7. Nbd2 {[%clk 0:02:58]}  Nxe4 {[%clk 0:02:38]} 8. d5 {[%clk 0:02:57]}  Bxd2+ {[%clk 0:02:21]} 9. Bxd2 {[%clk 0:02:34]}  Ne7 {[%clk 0:02:12]} 10. Be3 {[%clk 0:01:49]}  O-O {[%clk 0:01:58]} 11. Qd3 {[%clk 0:01:44]}  Nf6 {[%clk 0:01:55]} 12. d6 {[%clk 0:01:43]}  cxd6 {[%clk 0:01:53]} 13. O-O-O {[%clk 0:01:37]}  b5 {[%clk 0:01:46]} 14. Bb3 {[%clk 0:01:34]}  Bb7 {[%clk 0:01:47]} 15. Ng5 {[%clk 0:00:36]}  Rc8+ {[%clk 0:01:29]} 16. Kd2 {[%clk 0:00:36]}  h6 {[%clk 0:01:21]} 17. h4 {[%clk 0:00:36]}  hxg5 {[%clk 0:01:13]} 18. hxg5 {[%clk 0:00:37]}  Ne4+ {[%clk 0:01:13]} 19. Ke1 {[%clk 0:00:35]}  Ng6 {[%clk 0:00:47]} 20. Qe2 {[%clk 0:00:35]}  Re8 {[%clk 0:00:20]} 21. Qh5 {[%clk 0:00:34]}  Kf8 {[%clk 0:00:20]} 22. Kf1 {[%clk 0:00:22]}  b4 {[%clk 0:00:18]} 23. Kg1 {[%clk 0:00:22]}  Ng3 {[%clk 0:00:11]} 24. Qh7 {[%clk 0:00:11]}  Nxh1 {[%clk 0:00:09]} 25. Bd4 {[%clk 0:00:11]}  Re5 {[%clk 0:00:10]} 26. Kxh1 {[%clk 0:00:07]}  Qxg5 {[%clk 0:00:10]} 27. Bxe5 {[%clk 0:00:05]}  Qxg2# {[%clk 0:00:10]} 0-1


[Site "https://www.chess.com"]

[Event "Titled Tuesday Blitz March 22 Late 2022"]
[White "Melaugh, Shane"]
[Black "Adewumi, Tanitoluwa"]
[WhiteFideId "2509580"]
[BlackFideId "30966396"]
[WhiteElo "2014"]
[BlackElo "2535"]
[Result "0-1"]
[Round "04"]
[TimeControl "180+1"]
[Date "2022.03.22"]
[WhiteClock "0:01:02"]
[BlackClock "0:00:48"]

1. c4 {[%clk 0:03:00]}  e6 {[%clk 0:02:46]} 2. Nc3 {[%clk 0:03:00]}  c5 {[%clk 0:02:39]} 3. e4 {[%clk 0:02:57]}  Nc6 {[%clk 0:02:39]} 4. Nf3 {[%clk 0:02:53]}  Nf6 {[%clk 0:02:22]} 5. d4 {[%clk 0:02:53]}  cxd4 {[%clk 0:02:22]} 6. Nxd4 {[%clk 0:02:54]}  Bb4 {[%clk 0:02:16]} 7. Nxc6 {[%clk 0:02:49]}  bxc6 {[%clk 0:02:17]} 8. Bd3 {[%clk 0:02:45]}  e5 {[%clk 0:02:13]} 9. O-O {[%clk 0:02:44]}  O-O {[%clk 0:02:09]} 10. Ne2 {[%clk 0:02:40]}  d5 {[%clk 0:01:51]} 11. cxd5 {[%clk 0:02:40]}  cxd5 {[%clk 0:01:52]} 12. exd5 {[%clk 0:02:40]}  Qxd5 {[%clk 0:01:53]} 13. Ng3 {[%clk 0:02:19]}  Bb7 {[%clk 0:01:35]} 14. f3 {[%clk 0:02:12]}  Rad8 {[%clk 0:01:33]} 15. Qa4 {[%clk 0:01:47]}  Bc5+ {[%clk 0:01:26]} 16. Kh1 {[%clk 0:01:47]}  Qxd3 {[%clk 0:01:26]} 17. Bg5 {[%clk 0:01:47]}  Qg6 {[%clk 0:01:16]} 18. f4 {[%clk 0:01:39]}  Rd2 {[%clk 0:01:09]} 19. Rg1 {[%clk 0:01:22]}  Ng4 {[%clk 0:01:08]} 20. h3 {[%clk 0:01:17]}  Qd3 {[%clk 0:00:57]} 21. Bh4 {[%clk 0:01:07]}  Bxg1 {[%clk 0:00:52]} 22. Rxg1 {[%clk 0:01:07]}  Rxg2 {[%clk 0:00:48]} 23. Rxg2 {[%clk 0:01:07]}  Qb1+ {[%clk 0:00:47]} 24. Nf1 {[%clk 0:01:02]}  Qxf1# {[%clk 0:00:48]} 0-1


[Site "https://www.chess.com"]

[Event "Titled Tuesday Blitz March 22 Late 2022"]
[White "Milosevic, Milos"]
[Black "Fishbein, Alexander"]
[WhiteFideId "964875"]
[BlackFideId "2000377"]
[WhiteElo "2237"]
[BlackElo "2442"]
[Result "0-1"]
[Round "04"]
[TimeControl "180+1"]
[Date "2022.03.22"]
[WhiteClock "0:00:02"]
[BlackClock "0:00:38"]

1. e4 {[%clk 0:03:00]}  c5 {[%clk 0:02:59]} 2. Nf3 {[%clk 0:02:57]}  d6 {[%clk 0:02:58]} 3. d4 {[%clk 0:02:56]}  cxd4 {[%clk 0:02:58]} 4. Nxd4 {[%clk 0:02:57]}  Nf6 {[%clk 0:02:58]} 5. Nc3 {[%clk 0:02:57]}  Nc6 {[%clk 0:02:59]} 6. Be3 {[%clk 0:02:52]}  e5 {[%clk 0:02:57]} 7. Nb3 {[%clk 0:02:45]}  Be7 {[%clk 0:02:56]} 8. Bc4 {[%clk 0:02:44]}  O-O {[%clk 0:02:56]} 9. O-O {[%clk 0:02:44]}  Be6 {[%clk 0:02:51]} 10. Nd5 {[%clk 0:02:37]}  Nxe4 {[%clk 0:02:47]} 11. Nxe7+ {[%clk 0:02:35]}  Qxe7 {[%clk 0:02:46]} 12. Bxe6 {[%clk 0:02:36]}  Qxe6 {[%clk 0:02:44]} 13. f3 {[%clk 0:02:36]}  Nf6 {[%clk 0:02:43]} 14. Qd2 {[%clk 0:02:24]}  b6 {[%clk 0:02:41]} 15. Rad1 {[%clk 0:02:24]}  d5 {[%clk 0:02:40]} 16. Bf2 {[%clk 0:02:23]}  d4 {[%clk 0:02:32]} 17. c3 {[%clk 0:02:22]}  dxc3 {[%clk 0:02:21]} 18. Qxc3 {[%clk 0:02:23]}  Rac8 {[%clk 0:02:20]} 19. Qe3 {[%clk 0:02:19]}  Nd5 {[%clk 0:02:17]} 20. Qd2 {[%clk 0:02:16]}  Rfd8 {[%clk 0:02:15]} 21. Qg5 {[%clk 0:02:16]}  f6 {[%clk 0:02:13]} 22. Qg3 {[%clk 0:02:16]}  Nf4 {[%clk 0:02:11]} 23. Rde1 {[%clk 0:02:13]}  Nd3 {[%clk 0:02:03]} 24. Re2 {[%clk 0:02:11]}  Qf5 {[%clk 0:01:57]} 25. Nc1 {[%clk 0:02:04]}  Nxf2 {[%clk 0:01:50]} 26. Qxf2 {[%clk 0:02:05]}  Nd4 {[%clk 0:01:48]} 27. Rd2 {[%clk 0:02:00]}  Rc2 {[%clk 0:01:47]} 28. Rxc2 {[%clk 0:01:55]}  Qxc2 {[%clk 0:01:47]} 29. Qxc2 {[%clk 0:01:53]}  Nxc2 {[%clk 0:01:48]} 30. b3 {[%clk 0:01:53]}  Rd2 {[%clk 0:01:42]} 31. Rf2 {[%clk 0:01:52]}  Rxf2 {[%clk 0:01:41]} 32. Kxf2 {[%clk 0:01:52]}  Kf7 {[%clk 0:01:41]} 33. Ke2 {[%clk 0:01:49]}  Ke6 {[%clk 0:01:41]} 34. Kd3 {[%clk 0:01:50]}  Ne1+ {[%clk 0:01:39]} 35. Kc4 {[%clk 0:01:48]}  Nxg2 {[%clk 0:01:38]} 36. Kb5 {[%clk 0:01:49]}  Kd6 {[%clk 0:01:32]} 37. Nd3 {[%clk 0:01:48]}  Nh4 {[%clk 0:01:27]} 38. Ne1 {[%clk 0:01:47]}  Kc7 {[%clk 0:01:23]} 39. Ka6 {[%clk 0:01:47]}  Kb8 {[%clk 0:01:22]} 40. a4 {[%clk 0:01:47]}  f5 {[%clk 0:01:22]} 41. a5 {[%clk 0:01:45]}  bxa5 {[%clk 0:01:21]} 42. Kxa5 {[%clk 0:01:46]}  Kb7 {[%clk 0:01:19]} 43. Kb5 {[%clk 0:01:46]}  Ng6 {[%clk 0:01:17]} 44. Kc5 {[%clk 0:01:43]}  Kc7 {[%clk 0:01:16]} 45. Nd3 {[%clk 0:01:40]}  e4 {[%clk 0:01:16]} 46. fxe4 {[%clk 0:01:41]}  fxe4 {[%clk 0:01:16]} 47. Ne1 {[%clk 0:01:38]}  Nh4 {[%clk 0:01:12]} 48. h3 {[%clk 0:01:13]}  Nf3 {[%clk 0:01:10]} 49. Ng2 {[%clk 0:01:13]}  Kd7 {[%clk 0:01:02]} 50. Kd5 {[%clk 0:01:13]}  Nd2 {[%clk 0:01:01]} 51. b4 {[%clk 0:01:10]}  Ke7 {[%clk 0:01:01]} 52. Kd4 {[%clk 0:01:10]}  Kd6 {[%clk 0:00:59]} 53. Ke3 {[%clk 0:01:10]}  Nf3 {[%clk 0:00:55]} 54. Kxe4 {[%clk 0:00:36]}  Ng5+ {[%clk 0:00:55]} 55. Kd4 {[%clk 0:00:34]}  Nxh3 {[%clk 0:00:55]} 56. Kc4 {[%clk 0:00:32]}  Nf2 {[%clk 0:00:52]} 57. Kb5 {[%clk 0:00:32]}  Nd3 {[%clk 0:00:46]} 58. Kc4 {[%clk 0:00:28]}  Ne5+ {[%clk 0:00:46]} 59. Kc3 {[%clk 0:00:08]}  g5 {[%clk 0:00:46]} 60. Ne3 {[%clk 0:00:06]}  h5 {[%clk 0:00:45]} 61. Kd4 {[%clk 0:00:03]}  Nc6+ {[%clk 0:00:44]} 62. Ke4 {[%clk 0:00:03]}  Nxb4 {[%clk 0:00:38]} 63. Kf5 {[%clk 0:00:02]}  g4 {[%clk 0:00:38]} 0-1


[Site "https://www.chess.com"]

[Event "Titled Tuesday Blitz March 22 Late 2022"]
[White "Muetsch, Annmarie"]
[Black "Rozman, Levy"]
[WhiteFideId "12971367"]
[BlackFideId "2039877"]
[WhiteElo "2249"]
[BlackElo "2376"]
[Result "0-1"]
[Round "04"]
[TimeControl "180+1"]
[Date "2022.03.22"]
[WhiteClock "0:00:50"]
[BlackClock "0:01:38"]

1. e4 {[%clk 0:03:00]}  d5 {[%clk 0:02:55]} 2. exd5 {[%clk 0:02:59]}  Nf6 {[%clk 0:02:55]} 3. Bb5+ {[%clk 0:02:56]}  Nbd7 {[%clk 0:02:54]} 4. Nf3 {[%clk 0:02:49]}  Nxd5 {[%clk 0:02:53]} 5. d4 {[%clk 0:02:48]}  e6 {[%clk 0:02:52]} 6. O-O {[%clk 0:02:47]}  Be7 {[%clk 0:02:51]} 7. Be2 {[%clk 0:02:36]}  O-O {[%clk 0:02:47]} 8. c4 {[%clk 0:02:36]}  N5f6 {[%clk 0:02:47]} 9. Nc3 {[%clk 0:02:35]}  b6 {[%clk 0:02:39]} 10. Be3 {[%clk 0:02:29]}  Bb7 {[%clk 0:02:38]} 11. Qc2 {[%clk 0:02:21]}  c5 {[%clk 0:02:34]} 12. Rad1 {[%clk 0:02:17]}  cxd4 {[%clk 0:02:34]} 13. Nxd4 {[%clk 0:02:16]}  a6 {[%clk 0:02:25]} 14. Bf3 {[%clk 0:02:06]}  Qc7 {[%clk 0:02:22]} 15. Bxb7 {[%clk 0:01:59]}  Qxb7 {[%clk 0:02:23]} 16. Qe2 {[%clk 0:01:56]}  Rac8 {[%clk 0:02:22]} 17. Bd2 {[%clk 0:01:48]}  Rfd8 {[%clk 0:02:12]} 18. Nxe6 {[%clk 0:01:31]}  fxe6 {[%clk 0:02:04]} 19. Qxe6+ {[%clk 0:01:32]}  Kf8 {[%clk 0:02:04]} 20. Bf4 {[%clk 0:01:14]}  Nc5 {[%clk 0:02:02]} 21. Qf5 {[%clk 0:01:10]}  Rxd1 {[%clk 0:01:56]} 22. Rxd1 {[%clk 0:01:08]}  Rd8 {[%clk 0:01:55]} 23. Nd5 {[%clk 0:01:06]}  Qd7 {[%clk 0:01:51]} 24. Qe5 {[%clk 0:00:59]}  Bd6 {[%clk 0:01:38]} 25. Nxf6 {[%clk 0:00:58]}  Bxe5 {[%clk 0:01:38]} 26. Nxd7+ {[%clk 0:00:50]}  Rxd7 {[%clk 0:01:38]} 0-1


[Site "https://www.chess.com"]

[Event "Titled Tuesday Blitz March 22 Late 2022"]
[White "Nenezic, Marko"]
[Black "Vasquez Schroeder, Rodrigo"]
[WhiteFideId "912123"]
[BlackFideId "3400042"]
[WhiteElo "2457"]
[BlackElo "2561"]
[Result "0-1"]
[Round "04"]
[TimeControl "180+1"]
[Date "2022.03.22"]
[WhiteClock "0:00:13"]
[BlackClock "0:00:52"]

1. Nf3 {[%clk 0:03:00]}  c5 {[%clk 0:02:59]} 2. c4 {[%clk 0:03:00]}  Nf6 {[%clk 0:02:58]} 3. Nc3 {[%clk 0:02:59]}  e6 {[%clk 0:02:58]} 4. g3 {[%clk 0:02:59]}  b6 {[%clk 0:02:59]} 5. Bg2 {[%clk 0:02:59]}  Bb7 {[%clk 0:02:59]} 6. O-O {[%clk 0:03:00]}  a6 {[%clk 0:03:00]} 7. b3 {[%clk 0:02:57]}  Be7 {[%clk 0:02:59]} 8. d4 {[%clk 0:02:55]}  cxd4 {[%clk 0:02:59]} 9. Qxd4 {[%clk 0:02:56]}  d6 {[%clk 0:02:59]} 10. Ba3 {[%clk 0:02:55]}  Nc6 {[%clk 0:02:58]} 11. Qf4 {[%clk 0:02:47]}  Qc7 {[%clk 0:02:58]} 12. Rfd1 {[%clk 0:02:46]}  Rd8 {[%clk 0:02:56]} 13. Ng5 {[%clk 0:02:39]}  O-O {[%clk 0:02:51]} 14. Nge4 {[%clk 0:02:33]}  Ne8 {[%clk 0:02:49]} 15. Rac1 {[%clk 0:02:29]}  Nb8 {[%clk 0:02:49]} 16. Rd2 {[%clk 0:02:14]}  Nd7 {[%clk 0:02:30]} 17. Rcd1 {[%clk 0:01:31]}  Nc5 {[%clk 0:02:26]} 18. Nxc5 {[%clk 0:01:31]}  bxc5 {[%clk 0:02:26]} 19. Na4 {[%clk 0:01:28]}  Bxg2 {[%clk 0:02:25]} 20. Kxg2 {[%clk 0:01:29]}  Nf6 {[%clk 0:02:19]} 21. Kg1 {[%clk 0:01:25]}  Qc6 {[%clk 0:02:17]} 22. Bb2 {[%clk 0:01:21]}  Ne4 {[%clk 0:02:09]} 23. Qf3 {[%clk 0:01:14]}  f5 {[%clk 0:02:05]} 24. Rd3 {[%clk 0:01:09]}  h6 {[%clk 0:01:42]} 25. Qg2 {[%clk 0:01:09]}  Rd7 {[%clk 0:01:39]} 26. f3 {[%clk 0:01:08]}  Nf6 {[%clk 0:01:39]} 27. Qf2 {[%clk 0:01:06]}  Rfd8 {[%clk 0:01:39]} 28. Qe3 {[%clk 0:01:03]}  Kf7 {[%clk 0:01:38]} 29. Qd2 {[%clk 0:00:59]}  d5 {[%clk 0:01:36]} 30. cxd5 {[%clk 0:00:56]}  Nxd5 {[%clk 0:01:31]} 31. Qc1 {[%clk 0:00:43]}  Nb4 {[%clk 0:01:19]} 32. Rxd7 {[%clk 0:00:42]}  Rxd7 {[%clk 0:01:19]} 33. Rxd7 {[%clk 0:00:43]}  Qxd7 {[%clk 0:01:20]} 34. a3 {[%clk 0:00:42]}  Nd5 {[%clk 0:01:08]} 35. Nxc5 {[%clk 0:00:42]}  Qc6 {[%clk 0:01:06]} 36. Nd3 {[%clk 0:00:30]}  Qb6+ {[%clk 0:01:06]} 37. Kh1 {[%clk 0:00:30]}  Qxb3 {[%clk 0:00:55]} 38. Ne5+ {[%clk 0:00:30]}  Kg8 {[%clk 0:00:55]} 39. Qc8+ {[%clk 0:00:26]}  Kh7 {[%clk 0:00:54]} 40. Qxe6 {[%clk 0:00:25]}  Qd1+ {[%clk 0:00:52]} 41. Kg2 {[%clk 0:00:25]}  Qxe2+ {[%clk 0:00:52]} 42. Kh3 {[%clk 0:00:13]}  Qf1# {[%clk 0:00:52]} 0-1


[Site "https://www.chess.com"]

[Event "Titled Tuesday Blitz March 22 Late 2022"]
[White "Papasimakopoulos, Alexandros"]
[Black "Msellek, Ilyass"]
[WhiteFideId "4244125"]
[BlackFideId "675938"]
[WhiteElo "2340"]
[BlackElo "2219"]
[Result "0-1"]
[Round "04"]
[TimeControl "180+1"]
[Date "2022.03.22"]
[WhiteClock "0:00:03"]
[BlackClock "0:00:32"]

1. d4 {[%clk 0:03:00]}  d6 {[%clk 0:02:59]} 2. c4 {[%clk 0:02:59]}  Nf6 {[%clk 0:02:58]} 3. Nf3 {[%clk 0:02:57]}  g6 {[%clk 0:02:58]} 4. Nc3 {[%clk 0:02:57]}  Bg7 {[%clk 0:02:58]} 5. Bg5 {[%clk 0:02:56]}  O-O {[%clk 0:02:56]} 6. e3 {[%clk 0:02:57]}  h6 {[%clk 0:02:43]} 7. Bh4 {[%clk 0:02:10]}  Bf5 {[%clk 0:02:35]} 8. Be2 {[%clk 0:01:52]}  Nbd7 {[%clk 0:02:28]} 9. Nd2 {[%clk 0:01:49]}  g5 {[%clk 0:02:24]} 10. Bg3 {[%clk 0:01:47]}  e5 {[%clk 0:02:24]} 11. d5 {[%clk 0:01:38]}  Bg6 {[%clk 0:02:18]} 12. O-O {[%clk 0:01:37]}  a5 {[%clk 0:02:16]} 13. a3 {[%clk 0:01:29]}  Nc5 {[%clk 0:02:07]} 14. b4 {[%clk 0:01:29]}  axb4 {[%clk 0:02:08]} 15. axb4 {[%clk 0:01:30]}  Rxa1 {[%clk 0:02:05]} 16. Qxa1 {[%clk 0:01:31]}  Nd3 {[%clk 0:02:06]} 17. Qa4 {[%clk 0:01:17]}  e4 {[%clk 0:01:39]} 18. Nb5 {[%clk 0:01:00]}  Nh5 {[%clk 0:01:30]} 19. Bxh5 {[%clk 0:00:41]}  Bxh5 {[%clk 0:01:31]} 20. Nxe4 {[%clk 0:00:40]}  f5 {[%clk 0:01:31]} 21. Nexd6 {[%clk 0:00:22]}  f4 {[%clk 0:01:23]} 22. Nxb7 {[%clk 0:00:19]}  Qf6 {[%clk 0:01:10]} 23. exf4 {[%clk 0:00:19]}  gxf4 {[%clk 0:01:10]} 24. Qc2 {[%clk 0:00:16]}  Nxb4 {[%clk 0:01:03]} 25. Qd2 {[%clk 0:00:14]}  fxg3 {[%clk 0:01:02]} 26. hxg3 {[%clk 0:00:14]}  Na6 {[%clk 0:00:39]} 27. Qa5 {[%clk 0:00:15]}  Be2 {[%clk 0:00:39]} 28. Re1 {[%clk 0:00:08]}  Qxf2+ {[%clk 0:00:38]} 29. Kh2 {[%clk 0:00:08]}  Be5 {[%clk 0:00:37]} 30. Qa3 {[%clk 0:00:05]}  Qxe1 {[%clk 0:00:37]} 31. Nxc7 {[%clk 0:00:03]}  Nxc7 {[%clk 0:00:36]} 32. d6 {[%clk 0:00:03]}  Rf1 {[%clk 0:00:32]} 0-1


[Site "https://www.chess.com"]

[Event "Titled Tuesday Blitz March 22 Late 2022"]
[White "Perera Alfonso, Rene Humberto"]
[Black "Jaskolka, Tomasz"]
[WhiteFideId "3514722"]
[BlackFideId "1170791"]
[WhiteElo "2313"]
[BlackElo "2073"]
[Result "1-0"]
[Round "04"]
[TimeControl "180+1"]
[Date "2022.03.22"]
[WhiteClock "0:02:41"]
[BlackClock "0:01:30"]

1. e4 {[%clk 0:02:59]}  c5 {[%clk 0:02:58]} 2. Nf3 {[%clk 0:02:59]}  e6 {[%clk 0:02:58]} 3. d4 {[%clk 0:02:59]}  cxd4 {[%clk 0:02:59]} 4. Nxd4 {[%clk 0:03:00]}  Nc6 {[%clk 0:02:59]} 5. Nc3 {[%clk 0:03:00]}  Qc7 {[%clk 0:03:00]} 6. g3 {[%clk 0:03:01]}  Nf6 {[%clk 0:02:58]} 7. Ndb5 {[%clk 0:03:01]}  Qb8 {[%clk 0:02:56]} 8. Bf4 {[%clk 0:03:01]}  e5 {[%clk 0:02:52]} 9. Bg5 {[%clk 0:03:01]}  a6 {[%clk 0:02:48]} 10. Bxf6 {[%clk 0:03:01]}  gxf6 {[%clk 0:02:47]} 11. Na3 {[%clk 0:02:59]}  Bb4 {[%clk 0:02:32]} 12. Bg2 {[%clk 0:02:56]}  b5 {[%clk 0:02:25]} 13. Nb1 {[%clk 0:02:55]}  Nd4 {[%clk 0:02:18]} 14. O-O {[%clk 0:02:54]}  Bb7 {[%clk 0:02:18]} 15. Nd5 {[%clk 0:02:54]}  Bxd5 {[%clk 0:02:16]} 16. exd5 {[%clk 0:02:55]}  Bd6 {[%clk 0:02:16]} 17. c3 {[%clk 0:02:55]}  Nf5 {[%clk 0:02:15]} 18. Qf3 {[%clk 0:02:55]}  Ne7 {[%clk 0:02:03]} 19. Qxf6 {[%clk 0:02:54]}  Rg8 {[%clk 0:02:02]} 20. Nd2 {[%clk 0:02:53]}  Rg6 {[%clk 0:01:42]} 21. Qh8+ {[%clk 0:02:52]}  Rg8 {[%clk 0:01:43]} 22. Qxh7 {[%clk 0:02:52]}  f5 {[%clk 0:01:43]} 23. a4 {[%clk 0:02:49]}  Kd8 {[%clk 0:01:34]} 24. axb5 {[%clk 0:02:48]}  axb5 {[%clk 0:01:33]} 25. Qh6 {[%clk 0:02:41]}  Rg6 {[%clk 0:01:30]} 26. Qf8+ {[%clk 0:02:41]}  Kc7 {[%clk 0:01:30]} 27. Rxa8 {[%clk 0:02:41]} 1-0


[Site "https://www.chess.com"]

[Event "Titled Tuesday Blitz March 22 Late 2022"]
[White "Perez Torres, Nabi Isaias"]
[Black "Cervantes Landeiro, Thalia"]
[WhiteFideId "5120373"]
[BlackFideId "3520498"]
[WhiteElo "1755"]
[BlackElo "2021"]
[Result "1-0"]
[Round "04"]
[TimeControl "180+1"]
[Date "2022.03.22"]
[WhiteClock "0:00:14"]
[BlackClock "0:00:02"]

1. d4 {[%clk 0:03:00]}  Nf6 {[%clk 0:02:59]} 2. c4 {[%clk 0:03:01]}  g6 {[%clk 0:02:59]} 3. Nf3 {[%clk 0:03:01]}  Bg7 {[%clk 0:02:59]} 4. Nc3 {[%clk 0:03:01]}  d5 {[%clk 0:03:00]} 5. cxd5 {[%clk 0:02:52]}  Nxd5 {[%clk 0:03:00]} 6. Bg5 {[%clk 0:02:50]}  Nxc3 {[%clk 0:02:54]} 7. bxc3 {[%clk 0:02:51]}  O-O {[%clk 0:02:54]} 8. e4 {[%clk 0:02:51]}  c5 {[%clk 0:02:52]} 9. Rc1 {[%clk 0:02:49]}  Bg4 {[%clk 0:02:51]} 10. d5 {[%clk 0:02:48]}  Nd7 {[%clk 0:02:39]} 11. Qd2 {[%clk 0:02:45]}  Nf6 {[%clk 0:02:34]} 12. Qf4 {[%clk 0:02:34]}  Bxf3 {[%clk 0:02:16]} 13. Qxf3 {[%clk 0:02:33]}  Qa5 {[%clk 0:02:11]} 14. h4 {[%clk 0:01:56]}  Qxa2 {[%clk 0:01:51]} 15. h5 {[%clk 0:01:43]}  Qa4 {[%clk 0:01:41]} 16. Bd3 {[%clk 0:01:41]}  Qd7 {[%clk 0:01:30]} 17. Rh4 {[%clk 0:01:09]}  h6 {[%clk 0:01:08]} 18. Bxf6 {[%clk 0:00:48]}  Bxf6 {[%clk 0:00:52]} 19. Rg4 {[%clk 0:00:48]}  g5 {[%clk 0:00:49]} 20. e5 {[%clk 0:00:36]}  Bxe5 {[%clk 0:00:32]} 21. Qe4 {[%clk 0:00:36]}  f5 {[%clk 0:00:29]} 22. Qxe5 {[%clk 0:00:34]}  fxg4 {[%clk 0:00:28]} 23. Qe4 {[%clk 0:00:34]}  Rf7 {[%clk 0:00:27]} 24. Qg6+ {[%clk 0:00:29]}  Rg7 {[%clk 0:00:25]} 25. Qxh6 {[%clk 0:00:29]}  Qxd5 {[%clk 0:00:20]} 26. Rd1 {[%clk 0:00:27]}  Qe5+ {[%clk 0:00:15]} 27. Kf1 {[%clk 0:00:27]}  Re8 {[%clk 0:00:15]} 28. Bc4+ {[%clk 0:00:27]}  e6 {[%clk 0:00:15]} 29. Re1 {[%clk 0:00:25]}  Qf5 {[%clk 0:00:10]} 30. Rxe6 {[%clk 0:00:22]}  Rxe6 {[%clk 0:00:06]} 31. Bxe6+ {[%clk 0:00:22]}  Qf7 {[%clk 0:00:04]} 32. Bxf7+ {[%clk 0:00:22]}  Kxf7 {[%clk 0:00:05]} 33. Qd6 {[%clk 0:00:21]}  b6 {[%clk 0:00:05]} 34. h6 {[%clk 0:00:21]}  Rh7 {[%clk 0:00:06]} 35. Qd7+ {[%clk 0:00:19]}  Kg6 {[%clk 0:00:06]} 36. Qxg4 {[%clk 0:00:19]}  Kxh6 {[%clk 0:00:06]} 37. Qe6+ {[%clk 0:00:19]}  Kh5 {[%clk 0:00:04]} 38. g3 {[%clk 0:00:19]}  Rg7 {[%clk 0:00:04]} 39. Kg2 {[%clk 0:00:19]}  g4 {[%clk 0:00:03]} 40. f3 {[%clk 0:00:19]}  gxf3+ {[%clk 0:00:03]} 41. Kxf3 {[%clk 0:00:19]}  Rg6 {[%clk 0:00:04]} 42. Qf5+ {[%clk 0:00:19]}  Kh6 {[%clk 0:00:04]} 43. g4 {[%clk 0:00:19]}  Kg7 {[%clk 0:00:04]} 44. Ke4 {[%clk 0:00:19]}  Rf6 {[%clk 0:00:04]} 45. Qe5 {[%clk 0:00:20]}  Kf7 {[%clk 0:00:04]} 46. Kd5 {[%clk 0:00:19]}  Rg6 {[%clk 0:00:03]} 47. Qf5+ {[%clk 0:00:19]}  Kg7 {[%clk 0:00:03]} 48. Qd7+ {[%clk 0:00:19]}  Kh6 {[%clk 0:00:04]} 49. Kc4 {[%clk 0:00:19]}  a6 {[%clk 0:00:03]} 50. Kd5 {[%clk 0:00:14]}  Rg5+ {[%clk 0:00:03]} 51. Kc6 {[%clk 0:00:14]}  Rg6+ {[%clk 0:00:04]} 52. Kd5 {[%clk 0:00:14]}  Rg5+ {[%clk 0:00:03]} 53. Ke4 {[%clk 0:00:15]}  b5 {[%clk 0:00:02]} 54. Kf4 {[%clk 0:00:15]}  Rg6 {[%clk 0:00:03]} 55. Qf5 {[%clk 0:00:15]}  Kg7 {[%clk 0:00:02]} 56. g5 {[%clk 0:00:15]}  a5 {[%clk 0:00:02]} 57. Qxc5 {[%clk 0:00:13]}  Re6 {[%clk 0:00:01]} 58. Qxb5 {[%clk 0:00:12]}  Re7 {[%clk 0:00:02]} 59. Qxa5 {[%clk 0:00:13]}  Rf7+ {[%clk 0:00:02]} 60. Kg4 {[%clk 0:00:13]}  Rf1 {[%clk 0:00:02]} 61. Qe5+ {[%clk 0:00:13]}  Kf7 {[%clk 0:00:03]} 62. Qe3 {[%clk 0:00:13]}  Ra1 {[%clk 0:00:02]} 63. c4 {[%clk 0:00:13]}  Ra4 {[%clk 0:00:02]} 64. Qe4 {[%clk 0:00:13]}  Kg7 {[%clk 0:00:02]} 65. g6 {[%clk 0:00:13]}  Kf6 {[%clk 0:00:02]} 66. Qf5+ {[%clk 0:00:13]}  Kg7 {[%clk 0:00:02]} 67. Qf7+ {[%clk 0:00:13]}  Kh6 {[%clk 0:00:02]} 68. Qh7# {[%clk 0:00:14]} 1-0


[Site "https://www.chess.com"]